Cogmind - Beta 14 @@@ ROGUE MODE // 2024.10.20 @ 14:29:33 Player: NextToZero Result: Destroyed by G-47 Trooper with Particle Gun Performance ------------- Evolutions (0) 0 Regions Visited (4) 800 Robots Destroyed (16) 80 Value Destroyed (314) 314 Prototype IDs (0) 0 Alien Tech Used (0) 0 Bonus (0) 0 TOTAL SCORE: 1194 Bonus ------- None Cogmind --------- Core Integrity 0/250 Matter 300/300 Energy 50/100 System Corruption 0% Temperature Cool (15) Movement Core (50) Location -9/Mines Parts ------- > --- POWER (1) -------- (None) > --- PROPULSION (2) --- (None) > --- UTILITY (2) ------ Heat Sink > --- WEAPON (2) ------- (None) > --- INVENTORY (5) ---- Structural Scanner Seismic Detector Tractor Beam Medium Laser Light Assault Rifle Peak State ------------ > --- POWER ------------ Light Nuclear Core > --- PROPULSION ------- Aluminum Leg Aluminum Leg > --- UTILITY ---------- Small Storage Unit Tractor Beam > --- WEAPON ----------- Assault Rifle Light Assault Rifle > --- INVENTORY -------- Ion Engine Ion Engine Light Ion Engine Light Ion Engine Light Treads Light Treads Wheel Medium Laser [Rating: 9] Favorites ----------- Power Light Nuclear Core Engine Ion Engine Power Core Light Nuclear Core Propulsion Aluminum Leg Leg Aluminum Leg Wheel Compact Wheel Utility Small Storage Unit Device Heat Sink Storage Small Storage Unit Weapon Medium Laser Energy Gun Medium Laser Ballistic Gun Assault Rifle Build | -11 -10 -10 -10 -9 ------- Run | Yrd Mat Min Exi Min Slots Evolved . | . . . . . Power . | . . . . . Propulsion . | . . . . . Utility . | . . . . . Weapon . | . . . . . Parts Attached 14 | 8 6 . . . Power 2 | 1 1 . . . Engine 1 | 1 . . . . Core 1 | . 1 . . . Reactor . | . . . . . Propulsion 4 | 3 1 . . . Treads . | . . . . . Leg 3 | 2 1 . . . Wheel 1 | 1 . . . . Hover . | . . . . . Flight . | . . . . . Utility 4 | 2 2 . . . Device 3 | 1 2 . . . Storage 1 | 1 . . . . Processor . | . . . . . Hackware . | . . . . . Protection . | . . . . . Artifact . | . . . . . Weapon 4 | 2 2 . . . Energy Gun 2 | . 2 . . . Energy Cannon . | . . . . . Ballistic Gun 2 | 2 . . . . Ballistic Cannon . | . . . . . Launcher . | . . . . . Special Weapon . | . . . . . Impact Weapon . | . . . . . Slashing Weapon . | . . . . . Piercing Weapon . | . . . . . Special Melee Weapon . | . . . . . Unidentified Prototypes . | . . . . . Parts Lost 3 | . 1 . . 2 Power 1 | . 1 . . . Propulsion 2 | . . . . 2 Utility . | . . . . . Weapon . | . . . . . Highest Loss Streak 2 | . 1 . . 2 To Critical Strikes . | . . . . . Average Slot Usage (%) 91 | . 98 85 85 81 Core 6 | . 12 . . . Leg 27 | . 28 28 28 24 Device 13 | . 13 14 14 14 Storage 14 | . 14 14 14 14 Energy Gun 20 | . 13 28 28 28 Ballistic Gun 7 | . 14 . . . Peak Build Rating 9 | 7 9 6 6 6 Average Rating 7 | 4 8 6 6 5 On Entrance 5 | . 7 6 6 6 Naked Turns . | . . . . . Heaviest Build 16 | 14 16 10 10 10 Greatest Support 20 | 20 20 20 20 20 Greatest Overweight (x) 3 | 2 . . . 3 Average Overweight (x) . | . . . . . Largest Inventory Capacity 8 | 8 8 8 8 8 Average Capacity 7 | 6 8 8 8 8 Most Carried 8 | 7 8 8 8 8 Average Carried 6 | 4 6 8 7 8 Final Capacity 8 | 8 8 8 8 5 Final Carried 8 | 7 8 8 8 5 Class Distribution -------------------- 100% | Mutant Dominant Class ---------------- Mutant | -10/Materials Mutant | -10/Mines Mutant | -10/Exiles Mutant | -9/Mines Resources | -11 -10 -10 -10 -9 ----------- Run | Yrd Mat Min Exi Min Matter Collected 690 | 296 377 17 . . Remotely 225 | 167 58 . . . Salvage Created 562 | 123 392 47 . . Parts 22 | 7 12 3 . . Haulers Intercepted 1 | . 1 . . . Recyclers Shooed 1 | . 1 . . . Parts Field Recycled . | . . . . . Retrieved Matter . | . . . . . Parts Self-Destructed . | . . . . . Prevented . | . . . . . Kills | -11 -10 -10 -10 -9 ------- Run | Yrd Mat Min Exi Min Combat Hostiles Destroyed 10 | . 7 3 . . Guns 10 | . 7 3 . . Classes Destroyed 7 | 3 3 1 . . Worker 2 | 1 1 . . . Tunneler 1 | 1 . . . . Hauler 1 | . 1 . . . Recycler 1 | 1 . . . . Watcher 1 | . 1 . . . Swarmer 3 | . . 3 . . Grunt 7 | . 7 . . . Best Kill Streak 3 | 2 2 3 . . Combat Bots Only 3 | . 2 3 . . Max Kills in Single Turn 1 | 1 1 1 . . Gunslinging . | . . . . . Exploded . | . . . . . Melee . | . . . . . Uniques/NPCs Destroyed . | . . . . . Combat | -11 -10 -10 -10 -9 -------- Run | Yrd Mat Min Exi Min Hostile Shots Fired 117 | . 70 14 . 33 Missed 43 | . 27 3 . 13 Damage Taken 825 | . 498 90 . 237 Core 252 | . 119 9 . 124 Absorbed by Shields . | . . . . . Core Remaining (%) 100 | 100 . . . . Volleys Fired 93 | 8 72 6 . 7 Largest 2 | 2 2 2 . 2 Hottest 100 | 40 100 100 . 100 Shots Fired 178 | 16 136 12 . 14 Gun 178 | 16 136 12 . 14 Cannon . | . . . . . Launcher . | . . . . . Special . | . . . . . Kinetic 79 | 16 63 . . . Thermal 99 | . 73 12 . 14 Explosive . | . . . . . Electromagnetic . | . . . . . Robot Hit Streak 15 | 5 15 4 . 3 Robot Miss Streak 6 | 2 5 2 . 6 Penetration Max . | . . . . . Secondary Targets 2 | . 1 1 . . Max Gunslinging Chain 1 | . 1 1 . . Shots Hit Robots 95 | 11 71 8 . 5 Core Hits 31 | 5 23 3 . . Critical Kills . | . . . . . Critical Parts Destroyed . | . . . . . Critical Strikes 5 | . 4 1 . . Burn 5 | . 4 1 . . Melee Attacks . | . . . . . Impact . | . . . . . Slashing . | . . . . . Piercing . | . . . . . Sneak Attacks . | . . . . . Combat Hostiles . | . . . . . Follow-up Attacks . | . . . . . Damage Inflicted 1202 | 109 929 100 . 64 Guns 1202 | 109 929 100 . 64 Cannons . | . . . . . Explosions . | . . . . . Melee . | . . . . . Ramming . | . . . . . Kinetic 567 | 109 458 . . . Thermal 635 | . 471 100 . 64 Explosive . | . . . . . Electromagnetic . | . . . . . Impact . | . . . . . Slashing . | . . . . . Piercing . | . . . . . Highest Corruption . | . . . . . Average Corruption . | . . . . . Corruption Purged . | . . . . . Corruption Blocked . | . . . . . Overload Shots . | . . . . . Overflow Damage . | . . . . . Projectiles . | . . . . . Explosions . | . . . . . Melee . | . . . . . Knockbacks . | . . . . . Impact . | . . . . . Kinetic . | . . . . . Secondary . | . . . . . Self-Inflicted Damage . | . . . . . Shots . | . . . . . Rammed . | . . . . . Targets Rammed . | . . . . . Kicked . | . . . . . Crushed . | . . . . . Highest Temperature 344 | . 344 144 . 40 Average Temperature 118 | . 129 72 . 17 Received Heat Transfer 429 | . 276 . . 153 Effects 4 | . 4 . . . Shutdowns 1 | . 1 . . . Interference 3 | . 3 . . . Siege Activations . | . . . . . Robots Corrupted . | . . . . . Combat Hostiles . | . . . . . Parts Fried . | . . . . . Impact Corruptions . | . . . . . Robots Melted . | . . . . . Combat Hostiles . | . . . . . Parts Melted 2 | . . 2 . . Heat Transferred 2220 | . 1665 370 . 185 Parts Sabotaged . | . . . . . Parts Stolen . | . . . . . Parts Stripped . | . . . . . Power Chain Reactions . | . . . . . Alert | -11 -10 -10 -10 -9 ------- Run | Yrd Mat Min Exi Min Peak Influence 184 | 15 184 96 . . Initial 26 | . 9 26 . . Average 58 | 5 79 83 . . Maximum Alert Level . | . . . . . Low Security (%) 100 | 100 100 100 . 100 Level 1 . | . . . . . Level 2 . | . . . . . Level 3 . | . . . . . Level 4 . | . . . . . Level 5 . | . . . . . High Security . | . . . . . Max Security . | . . . . . Squads Dispatched 3 | . 3 . . . Investigation 1 | . 1 . . . Extermination . | . . . . . Reinforcement 2 | . 2 . . . Assault . | . . . . . Garrison . | . . . . . Intercept . | . . . . . Searches Triggered . | . . . . . Construction Impeded . | . . . . . Haulers Reinforced . | . . . . . Active Scanning Responses . | . . . . . Cargo Convoy Interrupts . | . . . . . Stealth | -11 -10 -10 -10 -9 --------- Run | Yrd Mat Min Exi Min Distress Signals 1 | . 1 . . . Communications Jammed . | . . . . . Distress Signals . | . . . . . Times Spotted 22 | . 17 2 . 3 Peak Tracking Total 3 | . 3 2 . 3 Tactical Retreats 3 | . 3 . . . Traps | -11 -10 -10 -10 -9 ------- Run | Yrd Mat Min Exi Min Traps Triggered . | . . . . . Indirectly . | . . . . . Trap Hack Attempts . | . . . . . Triggered . | . . . . . Disarmed . | . . . . . Reprogrammed . | . . . . . Reused . | . . . . . Traps Extracted . | . . . . . Installed . | . . . . . Triggered . | . . . . . Machines | -11 -10 -10 -10 -9 ---------- Run | Yrd Mat Min Exi Min Machines Disabled . | . . . . . Max in Single Turn . | . . . . . Machines Repaired . | . . . . . Machines Dismantled . | . . . . . Machines Sabotaged . | . . . . . Overloaded Fab Kills . | . . . . . Hacking | -11 -10 -10 -10 -9 --------- Run | Yrd Mat Min Exi Min Machines Accessed 2 | . 2 . . . Terminals 2 | . 2 . . . Fabricators . | . . . . . Repair Stations . | . . . . . Recycling Units . | . . . . . Scanalyzers . | . . . . . Garrison Access . | . . . . . Total Hacks 4 | . 4 . . . Successful 2 | . 2 . . . Failed 2 | . 2 . . . Catastrophic 1 | . 1 . . . Database Lockouts . | . . . . . Manual . | . . . . . Terminals 4 | . 4 . . . Fabricators . | . . . . . Repair Stations . | . . . . . Recycling Units . | . . . . . Scanalyzers . | . . . . . Garrison Access . | . . . . . Terminal Hacks 2 | . 2 . . . Record 1 | . 1 . . . Locate Traps 1 | . 1 . . . Fabricator Hacks . | . . . . . Repair Station Hacks . | . . . . . Recycling Unit Hacks . | . . . . . Scanalyzer . | . . . . . Garrison Access Hacks . | . . . . . Unauthorized Hacks . | . . . . . Terminals . | . . . . . Fabricators . | . . . . . Repair Stations . | . . . . . Recycling Units . | . . . . . Scanalyzers . | . . . . . Garrison Access . | . . . . . Data Cores Recovered . | . . . . . Used . | . . . . . Hacking Detections 2 | . 2 . . . Full Trace Events 1 | . 1 . . . Feedback Events . | . . . . . Feedback Blocked . | . . . . . Robot Schematics Acquired . | . . . . . Robots Built . | . . . . . Authchips . | . . . . . Time . | . . . . . Total Robot Build Rating . | . . . . . Part Schematics Acquired . | . . . . . Parts Built . | . . . . . Authchips . | . . . . . Time . | . . . . . Total Part Build Rating . | . . . . . Parts Repaired . | . . . . . Time . | . . . . . Parts Recycled . | . . . . . Recycled Matter . | . . . . . Retrieved Matter . | . . . . . Retrieved Components . | . . . . . Parts Scanalyzed . | . . . . . Part Schematics Acquired . | . . . . . Parts Damaged . | . . . . . Bothacking | -11 -10 -10 -10 -9 ------------ Run | Yrd Mat Min Exi Min Used RIF Installer . | . . . . . Robots Hacked . | . . . . . Non-combat . | . . . . . Combat . | . . . . . Robot Hacks Applied . | . . . . . Relay Couplers Released . | . . . . . Fabnet Peak Effective % . | . . . . . Robots Rewired . | . . . . . Allies Hacked . | . . . . . Hacks Repelled . | . . . . . Allies | -11 -10 -10 -10 -9 -------- Run | Yrd Mat Min Exi Min Total Allies . | . . . . . Largest Group . | . . . . . Highest-Rated Group . | . . . . . Highest-Rated Ally . | . . . . . Total Orders . | . . . . . Ally Attacks . | . . . . . Total Damage . | . . . . . Kills . | . . . . . Allies Corrupted . | . . . . . Allies Melted . | . . . . . Intel | -11 -10 -10 -10 -9 ------- Run | Yrd Mat Min Exi Min Robot Analysis Total . | . . . . . Derelict Logs Recovered . | . . . . . Drone Launches . | . . . . . Drone Recoveries . | . . . . . Exploration | -11 -10 -10 -10 -9 ------------- Run | Yrd Mat Min Exi Min Turns Passed 1070 | 111 512 50 290 107 Spaces Moved 638 | 65 236 27 241 69 Core 29 | 27 . . . 2 Treads . | . . . . . Legs 598 | 27 236 27 241 67 Wheels 11 | 11 . . . . Hover . | . . . . . Flight . | . . . . . Fastest Speed 50 | 50 120 120 120 120 Average Speed 117 | 92 120 120 120 122 Slowest Speed 200 | 150 120 120 120 200 Overloaded Moves . | . . . . . Propulsion Burnouts . | . . . . . Robots Hopped . | . . . . . Cave-ins Triggered . | . . . . . Exploration Rate (%) 25 | 5 33 9 63 17 Regions Visited 4 Branch Regions 3 Pre-discovered Areas 1 | . . 1 . . Known Exits Taken . | . . . . . Unknown Exits Taken 4 | 1 1 1 1 . Scrap Searched . | . . . . . Spaces Dug . | . . . . . Terrain Destroyed . | . . . . . Melee . | . . . . . Projectile . | . . . . . AOE . | . . . . . Terrain Rammed . | . . . . . Walls Destroyed . | . . . . . Machines Disabled . | . . . . . Actions | -11 -10 -10 -10 -9 --------- Run | Yrd Mat Min Exi Min Total 789 | 100 334 34 242 79 Wait 6 | 6 . . . . Move 634 | 64 235 26 240 69 Hop . | . . . . . Pick Up 24 | 12 10 1 1 . Fast Attach 5 | 4 1 . . . Attach 7 | 4 3 . . . Detach 1 | . 1 . . . Swap 2 | . 2 . . . Drop 17 | 2 10 1 1 3 Fire 93 | 8 72 6 . 7 Melee . | . . . . . Ram . | . . . . . Kick . | . . . . . Crush . | . . . . . Escape Stasis . | . . . . . Rewire . | . . . . . Trap . | . . . . . Miscellaneous . | . . . . . Route ------- -11/Scrapyard -10/Materials (discovered 2 exits: [*Mat] / [*Min]) -10/Mines -10/Exiles -9/Mines (discovered 1 exit: [*Mat]) History --------- Turn | Location | Event 17 | -11/Scrapyard | Discovered new exit (range 15) 112 | -11/Scrapyard | Entered Materials 138 | -10/Materials | Discovered new exit (range 6) 310 | -10/Materials | Discovered new exit (range 6) 314 | -10/Materials | Build established: Mutant 624 | -10/Materials | Entered Mines 626 | -10/Mines | Core integrity fell below 50% 655 | -10/Mines | Learned location of Storage (-9) 669 | -10/Mines | Deemed a non-threat by the Exiles lab entrance 669 | -10/Mines | Discovered new exit (range 5) 674 | -10/Mines | Entered Exiles 674 | -10/Exiles | Found Exiles lab abandoned 954 | -10/Exiles | Discovered new exit (range 10) 964 | -10/Exiles | Entered Mines 988 | -9/Mines | Discovered new exit (range 7) 1068 | -9/Mines | Core integrity fell below 20% 1071 | -9/Mines | Destroyed by G-47 Trooper with Particle Gun Last Messages --------------- 00657_ 2B-G9I(g) slips back into the shadows. 00669_ "No threat detected, you may enter." 00669_ EXIT=FOUND LOCATION=UNKNOWN GOAL=ESCAPE 00778_ Connecting with BIN's Terminal... 00778_ Current location identified: Exiles 00931_ Dropped Lrg. Matter Pod. 00932_ Acquired Hcp. Matter Pod. 00954_ EXIT=FOUND LOCATION=UNKNOWN GOAL=ESCAPE 00988_ EXIT=FOUND 00991_ K-01 Serf collects debris. 00993_ K-01 Serf cleans the Seismic Survey Station. 01009_ K-01 Serf collects debris. 01056_ Aluminum Leg destroyed. 01067_ Critical hit (Burn: +37). 01070_ Dropped Med. Laser. 01071_ Dropped Sml. Storage Unit. Map ----- +----------------------------------------------------+ | ???????????????????????????? #??????????????? | | ??????????????????????????## ### ??????????? | | ?????????????????????????# ??????????? | | ????????????????????????# ?????????? | | ???????????????????????? ?????????? | | ???????????????????????# ????????? | | ?????????????????????## #????????? | | ????????????????????## #?????????? | | ??????########??????# #??????????? | | ??????# #??????# #????????????? | | ??????# < #??????# #?????????????? | | ??????# ####??## ????????????????? | | ??????# """ #?## #???????????????????? | | ??????# """ # #?# ##???????????????????? | | ??????# """ # ### ##????????????????????? | | ??????# # ## ##?????????????????????? | | ??????######## # ##??????????????????????? | | ?????????????# ##???????????????????????? | | ?????????????# ##????????????????????????? | | ?????????????# ##????????????????????????? | | ?????????????## #????????????????????????? | | ??????????????### #???######???????????????? | | ????????????????# #??## ##??????????????? | | ????????????????# #?## ##?????????????? | | ????????????????# #?# ![! ##????????????? | | ????????????????# ### !!@! #????????????? | | ????????????????# g g!!! #????????????? | | ????????????????##### ! ! ##???????????? | | ????????????????????# g!!!! # ##??????????? | | ????????????????????# # #??????????? | | ????????????????????# #??????????? | | ????????????????????########## ##??????????? | | ??????????????????????????????###???????????? | | ????????????????????????????????????????????? | | ????????????????????????????????????????????? | | | | | | | | | | | | | | | | | | | | | | | | | | | | | | | +----------------------------------------------------+ Best States ------------- Heat Dissipation 35 Energy Generation 14 Energy Capacity 250 Matter Stores 300 Matter Capacity 300 Sight Range 16 Terrain Scan Density 10 ECM Strength 1 Evasion (%) 55 Item Schematics ----------------- None Robot Schematics ------------------ None Fabricated ------------ Nothing Alien Tech Used ----------------- None Achievements -------------- None Challenges ------------ None Game ------ Seed RainbowPitchforkInterrupter Manual? 0 Play Time 00:10:48 Cumulative 10.7 hours Start 2024.10.20 @ 14:19:33 End 2024.10.20 @ 14:29:33 Sessions 1 Manual Loads 0 Difficulty Rogue Special Mode None Game No. 17 Rogue 17 Adventurer 0 Explorer 0 Win Type - Total 0 Types 0/0/0/0/0/0/0/0/0 Lore% 10 Gallery% 22 Achievement% 17 Wizard Run 0 Options --------- Layout 0 ASCII 0 Keyboard 0 Movement Mouse Keybinds 0 Fullscreen 1 Font 36/Smallcaps Map View 38x25 Zoom Use 96% Tactical HUD 1 Map Filters NONE Filters NONE Steam 1 RUN: f1aa86e5-d81d-4e42-ac0e-039ef89de517